lending/lending_fUSD_20240710
["ID","MTS","AMOUNT","RATE_DAILY","PERIOD"]
[331635220,1720596737580,-2342.89,0.00013698,2]
[331635221,1720596737609,-500.0,0.00013698,2]
[331635222,1720596737638,-1076.31,0.00013698,2]
[331635223,1720596737667,-2414.62,0.00013698,2]
[331635224,1720596737695,-500.0,0.00013698,2]
[331635225,1720596737731,-500.0,0.00013698,2]
[331635226,1720596737762,-1450.47,0.00013698,2]
[331635227,1720596737791,-500.0,0.00013698,2]
[331635228,1720596737819,-500.0,0.00013698,2]
[331635229,1720596737847,-500.0,0.00013698,2]
[331635230,1720596737874,-500.0,0.00013698,2]
[331635231,1720596737902,-1310.93,0.00013698,2]
[331635232,1720596737930,-603.57,0.00013698,2]
[331635233,1720596737960,-521.82,0.00013698,2]
[331635234,1720596737990,-568.16,0.00013698,2]
[331635235,1720596738018,-1769.74,0.00013698,2]
[331635236,1720596738046,-1749.46,0.00013698,2]
[331635237,1720596738074,-1725.53,0.00013698,2]
[331635238,1720596738102,-938.13,0.00013698,2]
[331635239,1720596738130,-524.84,0.00013698,2]
[331635240,1720596738160,-809.88,0.00013698,2]
[331635241,1720596738188,-1094.7,0.00013698,2]
[331635242,1720596738217,-500.0,0.00013698,2]
[331635243,1720596738244,-3746.67,0.00013698,2]
[331635244,1720596738272,-610.39,0.00013698,2]
[331635245,1720596738300,-1594.62,0.00013698,2]
[331635246,1720596738329,-703.65,0.00013698,2]
[331635247,1720596738357,-3249.97,0.00013698,2]
[331635248,1720596738385,-7924.39,0.00013698,2]
[331635249,1720596738414,-500.0,0.00013698,2]
[331635250,1720596738448,-500.0,0.00013698,2]
[331635251,1720596738478,-500.0,0.00013698,2]
[331635252,1720596738507,-500.0,0.00013698,2]
[331635253,1720596738536,-500.0,0.00013698,2]
[331635254,1720596738571,-500.0,0.00013698,2]
[331635255,1720596738601,-1278.61,0.00013698,2]
[331635256,1720596738629,-500.0,0.00013698,2]
[331635257,1720596738658,-995.19,0.00013698,2]
[331635258,1720596738687,-1779.01,0.00013698,2]
[331635259,1720596738716,-833.12,0.00013698,2]
[331635260,1720596738745,-500.0,0.00013698,2]
[331635261,1720596738772,-500.0,0.00013698,2]
[331635262,1720596738800,-500.0,0.00013698,2]
[331635263,1720596738830,-4343.15,0.00013698,2]
[331635264,1720596738857,-1958.42,0.00013698,2]
[331635265,1720596738885,-836.68,0.00013698,2]
[331635266,1720596738913,-937.91,0.00013698,2]
[331635267,1720596738941,-500.0,0.00013698,2]
[331635268,1720596738969,-1015.54,0.00013698,2]
[331635269,1720596738997,-652.2,0.00013698,2]
[331635270,1720596739025,-1046.93,0.00013698,2]
[331635271,1720596739053,-500.0,0.00013698,2]
[331635272,1720596739081,-1036.33,0.00013698,2]
[331635273,1720596739108,-2500.0,0.00013698,3]
[331635274,1720596739137,-500.0,0.00013698,2]
[331635275,1720596739164,-500.0,0.00013698,2]
[331635276,1720596739192,-500.93,0.00013698,2]
[331635277,1720596739221,-500.0,0.00013698,2]
[331635278,1720596739250,-2761.23,0.00013698,2]
[331635279,1720596739277,-1763.74,0.00013698,2]
[331635280,1720596739305,-500.0,0.00013698,2]
[331635281,1720596739333,-1764.72,0.00013698,2]
[331635282,1720596739360,-1094.25,0.00013698,2]
[331635283,1720596739388,-1377.0,0.00013698,2]
[331635284,1720596739417,-901.93,0.00013698,2]
[331635285,1720596739446,-500.0,0.00013698,2]
[331635286,1720596739474,-500.0,0.00013698,2]
[331635287,1720596739502,-722.78,0.00013698,2]
[331635288,1720596739530,-1322.17,0.00013698,2]
[331635289,1720596739760,-500.0,0.00013698,2]
[331635290,1720596739788,-500.0,0.00013698,2]
[331635291,1720596739814,-1000.0,0.00013698,2]
[331635292,1720596739843,-504.59,0.00013698,2]
[331635293,1720596739869,-497.65182835,0.00013698,2]
[331635294,1720596739896,-500.0,0.00013698,2]
[331635295,1720596739923,-500.0,0.00013698,2]
[331635296,1720596739952,-1379.53,0.00013698,2]
[331635297,1720596739979,-1026.89,0.00013698,2]
[331635298,1720596740007,-1181.59,0.00013698,2]
[331635299,1720596740035,-771.36,0.00013698,2]
[331635300,1720596740063,-500.0,0.00013698,2]
[331635301,1720596740095,-1669.52,0.00013698,2]
[331635302,1720596740123,-2079.15,0.00013698,2]
[331635303,1720596740150,-2144.14,0.00013698,2]
[331635304,1720596740178,-845.86,0.00013698,2]
[331635305,1720596740206,-500.0,0.00013698,2]
[331635306,1720596740235,-1316.62,0.00013698,2]
[331635307,1720596740263,-1065.41,0.00013698,2]
[331635308,1720596740292,-571.33,0.00013698,2]
[331635309,1720596740322,-500.0,0.00013698,2]
[331635310,1720596740348,-500.0,0.00013698,2]
[331635311,1720596740377,-1232.8,0.00013698,2]
[331635312,1720596740405,-770.37,0.00013698,2]
[331635313,1720596740432,-529.39,0.00013698,2]
[331635314,1720596740459,-632.65,0.00013698,2]
[331635315,1720596740486,-500.0,0.00013698,2]
[331635316,1720596740514,-825.54,0.00013698,2]
[331635317,1720596740541,-500.0,0.00013698,2]
[331635318,1720596740572,-3768.71,0.00013698,2]
[331635319,1720596740600,-500.0,0.00013698,2]
[331635320,1720596740626,-500.0,0.00013698,2]
[331635321,1720596740654,-769.88,0.00013698,2]
[331635322,1720596740681,-500.0,0.00013698,2]
[331635323,1720596740708,-500.0,0.00013698,2]
[331635324,1720596740741,-500.0,0.00013698,2]
[331635325,1720596740769,-502.01,0.00013698,2]
[331635326,1720596740797,-715.2,0.00013698,2]
[331635327,1720596740826,-632.02,0.00013698,2]
[331635328,1720596740854,-2377.78,0.00013698,2]
[331635329,1720596740882,-500.0,0.00013698,2]
[331635330,1720596740910,-782.24,0.00013698,2]
[331635331,1720596740938,-1516.78,0.00013698,2]
[331635332,1720596740966,-641.71,0.00013698,2]
[331635333,1720596740993,-590.27,0.00013698,2]
[331635334,1720596741022,-500.0,0.00013698,2]
[331635335,1720596741050,-1457.93,0.00013698,2]
[331635336,1720596741078,-516.61,0.00013698,2]
[331635337,1720596741107,-500.0,0.00013698,2]
[331635338,1720596741136,-1065.69,0.00013698,2]
[331635339,1720596741165,-889.11,0.00013698,2]
[331635340,1720596741193,-713.46,0.00013698,2]
[331635341,1720596741221,-1573.59,0.00013698,2]
[331635342,1720596741250,-726.21,0.00013698,2]
[331635343,1720596741277,-500.0,0.00013698,2]
[331635344,1720596741305,-522.39912328,0.00013698,2]
[331635345,1720596741333,-500.0,0.00013698,2]
[331635346,1720596741361,-1582.94,0.00013698,2]
[331635347,1720596741389,-500.0,0.00013698,2]
[331635348,1720596741416,-659.91,0.00013698,2]
[331635349,1720596741443,-180.0938072,0.00013698,2]
[331635350,1720596741473,-1494.16,0.00013698,2]
[331635351,1720596741503,-500.0,0.00013698,2]
[331635352,1720596741531,-500.0,0.00013698,2]
[331635353,1720596741559,-571.73,0.00013698,2]
[331635354,1720596741587,-929.35,0.00013698,2]
[331635355,1720596741617,-780.52,0.00013698,2]
[331635356,1720596741646,-707.35,0.00013698,2]
[331635357,1720596741674,-500.0,0.00013698,2]
[331635358,1720596741701,-814.88,0.00013698,2]
[331635359,1720596741931,-614.84,0.00013698,2]
[331635360,1720596741960,-742.99,0.00013698,2]
[331635361,1720596741990,-1197.66,0.00013698,2]
[331635362,1720596742019,-500.0,0.00013698,2]
[331635363,1720596742047,-603.24,0.00013698,2]
[331635364,1720596742075,-956.65,0.00013698,2]
[331635365,1720596742105,-1518.0,0.00013698,2]
[331635366,1720596742135,-500.0,0.00013698,2]
[331635367,1720596742166,-591.4,0.00013698,2]
[331635368,1720596742194,-500.0,0.00013698,2]
[331635369,1720596742226,-500.0,0.00013698,2]
[331635370,1720596742255,-500.0,0.00013698,2]
[331635371,1720596742284,-1783.94,0.00013698,2]
[331635372,1720596742312,-910.81,0.00013698,2]
[331635373,1720596742340,-500.0,0.00013698,2]
[331635374,1720596742367,-500.0,0.00013698,2]
[331635375,1720596742394,-500.0,0.00013698,2]
[331635376,1720596742421,-500.0,0.00013698,2]
[331635377,1720596742448,-1238.01,0.00013698,2]
[331635378,1720596742475,-517.28,0.00013698,2]
[331635379,1720596742504,-595.18,0.00013698,2]
[331635380,1720596742532,-1336.02,0.00013698,2]
[331635381,1720596742560,-2619.92,0.00013698,2]
[331635382,1720596742587,-655.39,0.00013698,2]
[331635383,1720596742614,-500.0,0.00013698,2]
[331635384,1720596742641,-500.0,0.00013698,2]
[331635385,1720596742668,-500.0,0.00013698,2]
[331635386,1720596742695,-500.0,0.00013698,2]
[331635387,1720596742725,-500.0,0.00013698,2]
[331635388,1720596742753,-500.0,0.00013698,2]
[331635389,1720596742781,-732.97,0.00013698,2]
[331635390,1720596742809,-500.0,0.00013698,2]
[331635391,1720596742837,-2561.09,0.00013698,2]
[331635392,1720596742864,-670.39,0.00013698,2]
[331635393,1720596742893,-793.82,0.00013698,2]
[331635394,1720596742920,-997.74,0.00013698,2]
[331635395,1720596742948,-500.0,0.00013698,2]
[331635396,1720596742977,-500.0,0.00013698,2]
[331635397,1720596743006,-500.0,0.00013698,2]
[331635398,1720596743034,-500.0,0.00013698,2]
[331635399,1720596743063,-500.0,0.00013698,2]
[331635400,1720596743091,-540.69,0.00013698,2]
[331635401,1720596743120,-618.37,0.00013698,2]
[331635402,1720596743148,-500.0,0.00013698,2]
[331635403,1720596743177,-846.33,0.00013698,2]
[331635404,1720596743207,-500.0,0.00013698,2]
[331635405,1720596743236,-593.58,0.00013698,2]
[331635406,1720596743264,-539.73,0.00013698,2]
[331635407,1720596743294,-500.0,0.00013698,2]
[331635408,1720596743323,-579.25,0.00013698,2]
[331635409,1720596743352,-1043.67,0.00013698,2]
[331635410,1720596743381,-989.23,0.00013698,2]
[331635411,1720596743414,-500.0,0.00013698,2]
[331635412,1720596743443,-2382.39,0.00013698,2]
[331635413,1720596743473,-1395.78,0.00013698,2]
[331635414,1720596743503,-1200.87,0.00013698,2]
[331635415,1720596743532,-744.96,0.00013698,2]
[331635416,1720596743561,-500.0,0.00013698,2]
[331635417,1720596743591,-500.0,0.00013698,2]
[331635418,1720596743621,-500.0,0.00013698,2]
[331635419,1720596743651,-500.0,0.00013698,2]
[331635420,1720596743682,-1803.17,0.00013698,2]
[331635421,1720596743711,-500.0,0.00013698,2]
[331635422,1720596743742,-551.53,0.00013698,2]
[331635423,1720596743771,-500.0,0.00013698,2]
[331635424,1720596743800,-852.22,0.00013698,2]
[331635425,1720596743829,-500.0,0.00013698,2]
[331635426,1720596743859,-500.0,0.00013698,2]
[331635427,1720596743891,-10425.31,0.00013698,2]
[331635428,1720596743921,-1269.24,0.00013698,2]
[331635429,1720596744183,-500.0,0.00013698,2]
[331635430,1720596744215,-500.0,0.00013698,2]
[331635431,1720596744246,-500.0,0.00013698,2]
[331635432,1720596744276,-1030.86,0.00013698,2]
[331635433,1720596744306,-500.0,0.00013698,2]
[331635434,1720596744334,-500.0,0.00013698,2]
[331635435,1720596744363,-500.0,0.00013698,2]
[331635436,1720596744391,-500.0,0.00013698,2]
[331635437,1720596744419,-500.0,0.00013698,2]
[331635438,1720596744447,-630.76148486,0.00013698,2]
[331635439,1720596744476,-547.45,0.00013698,2]
[331635440,1720596744506,-1904.36,0.00013698,2]
[331635441,1720596744534,-500.0,0.00013698,2]
[331635442,1720596744562,-500.0,0.00013698,2]
[331635443,1720596744597,-500.0,0.00013698,2]
[331635444,1720596744628,-798.22,0.00013698,2]
[331635445,1720596744659,-500.0,0.00013698,2]
[331635446,1720596744688,-1190.87,0.00013698,2]
[331635447,1720596744719,-500.0,0.00013698,2]
[331635448,1720596744752,-500.0,0.00013698,2]
[331635449,1720596744783,-500.0,0.00013698,2]
[331635450,1720596744813,-500.0,0.00013698,2]
[331635451,1720596744843,-500.0,0.00013698,2]
[331635452,1720596744873,-500.0,0.00013698,2]
[331635453,1720596744904,-1670.14,0.00013698,2]
[331635454,1720596744935,-500.0,0.00013698,2]
[331635455,1720596744968,-617.17,0.00013698,2]
[331635456,1720596745000,-500.0,0.00013698,2]
[331635457,1720596745030,-500.0,0.00013698,2]
[331635458,1720596745061,-681.45,0.00013698,2]
[331635459,1720596745090,-936.36,0.00013698,2]
[331635460,1720596745124,-861.68,0.00013698,2]
[331635461,1720596745155,-533.86106643,0.00013698,2]
[331635462,1720596745187,-1198.99,0.00013698,2]
[331635463,1720596745218,-550.95,0.00013698,2]
[331635464,1720596745248,-500.0,0.00013698,2]
[331635465,1720596745279,-500.0,0.00013698,2]
[331635466,1720596745310,-913.21,0.00013698,2]
[331635467,1720596745341,-1492.62,0.00013698,2]
[331635468,1720596745371,-538.63,0.00013698,2]
[331635469,1720596745400,-737.67,0.00013698,2]
[331635470,1720596745430,-500.0,0.00013698,2]
[331635471,1720596745462,-500.0,0.00013698,2]
[331635472,1720596745493,-1302.39,0.00013698,2]
[331635473,1720596745523,-1090.51,0.00013698,2]
[331635474,1720596745553,-821.74,0.00013698,2]
[331635475,1720596745582,-500.0,0.00013698,2]
[331635476,1720596745612,-1121.67,0.00013698,2]
[331635477,1720596745646,-500.0,0.00013698,2]
[331635478,1720596745676,-500.0,0.00013698,2]
[331635479,1720596745706,-500.0,0.00013698,2]
[331635480,1720596745737,-887.04,0.00013698,2]
[331635481,1720596745767,-1408.24,0.00013698,2]
[331635482,1720596745796,-721.95,0.00013698,2]
[331635483,1720596745828,-505.86,0.00013698,2]
[331635484,1720596745859,-608.56986617,0.00013698,2]
[331635485,1720596745889,-599.35,0.00013698,2]
[331635486,1720596745920,-737.18,0.00013698,2]
[331635487,1720596745954,-757.35,0.00013698,2]
[331635488,1720596745984,-500.0,0.00013698,2]
[331635489,1720596746015,-1545.29,0.00013698,2]
[331635490,1720596746045,-500.0,0.00013698,2]
[331635491,1720596746076,-920.62,0.00013698,2]
[331635492,1720596746105,-572.78,0.00013698,2]
[331635493,1720596746135,-1083.87,0.00013698,2]
[331635494,1720596746165,-500.0,0.00013698,2]
[331635495,1720596746195,-500.0,0.00013698,2]
[331635496,1720596746226,-500.0,0.00013698,2]
[331635497,1720596746256,-1152.47,0.00013698,2]
[331635498,1720596746286,-1032.18,0.00013698,2]
[331635499,1720596746659,-1133.69,0.00013698,2]
[331635500,1720596746689,-500.0,0.00013698,2]
[331635501,1720596746719,-594.7,0.00013698,2]
[331635502,1720596746751,-500.0,0.00013698,2]
[331635503,1720596746780,-500.0,0.00013698,2]
[331635504,1720596746811,-863.16,0.00013698,2]
[331635505,1720596746840,-682.56,0.00013698,2]
[331635506,1720596746869,-1296.57,0.00013698,2]
[331635507,1720596746898,-1134.56,0.00013698,2]
[331635508,1720596746932,-506.65,0.00013698,2]
[331635509,1720596746964,-299172.21895338,0.00013698,2]
[331635510,1720596746995,-500.0,0.00013698,2]
[331635511,1720596747025,-8796.8,0.00013698,2]
[331635512,1720596747055,-500.0,0.00013698,2]
[331635513,1720596747086,-1385.5,0.00013698,2]
[331635514,1720596747116,-500.0,0.00013698,2]
[331635515,1720596747146,-890.09,0.00013698,2]
[331635516,1720596747176,-500.0,0.00013698,2]
[331635517,1720596747207,-500.0,0.00013698,2]
[331635518,1720596747238,-500.0,0.00013698,2]
[331635519,1720596747269,-896.25,0.00013698,2]
[331635520,1720596747299,-1020.62,0.00013698,2]
[331635521,1720596747330,-500.0,0.00013698,2]
[331635522,1720596747359,-500.0,0.00013698,2]
[331635523,1720596747389,-500.0,0.00013698,2]
[331635524,1720596747423,-500.0,0.00013698,2]
[331635525,1720596747452,-500.0,0.00013698,2]
[331635526,1720596747484,-842.87,0.00013698,2]
[331635527,1720596747514,-1215.21,0.00013698,2]
[331635528,1720596747546,-500.0,0.00013698,2]
[331635529,1720596747579,-500.0,0.00013698,2]
[331635530,1720596747609,-500.0,0.00013698,2]
[331635531,1720596747640,-768.39,0.00013698,2]
[331635532,1720596747671,-500.0,0.00013698,2]
[331635533,1720596747701,-1824.18,0.00013698,2]
[331635534,1720596747734,-500.0,0.00013698,2]
[331635535,1720596747766,-975.24,0.00013698,2]
[331635536,1720596747795,-1006.61,0.00013698,2]
[331635537,1720596747830,-500.0,0.00013698,2]
[331635538,1720596747861,-500.0,0.00013698,2]
[331635539,1720596747894,-565.75,0.00013698,2]
[331635540,1720596747924,-500.0,0.00013698,2]
[331635541,1720596747955,-500.0,0.00013698,2]
[331635542,1720596747986,-500.0,0.00013698,2]
[331635543,1720596748016,-560.11,0.00013698,2]
[331635544,1720596748047,-990.14,0.00013698,2]
[331635545,1720596748076,-381.29909663,0.00013698,2]
[331635546,1720596748106,-500.0,0.00013698,2]
[331635547,1720596748137,-500.0,0.00013698,2]
[331635548,1720596748166,-500.0,0.00013698,2]
[331635549,1720596748195,-500.0,0.00013698,2]
[331635550,1720596748227,-500.0,0.00013698,2]
[331635551,1720596748257,-658.7,0.00013698,2]
[331635552,1720596748287,-806.59,0.00013698,2]
[331635553,1720596748317,-500.0,0.00013698,2]
[331635554,1720596748347,-500.0,0.00013698,2]
[331635555,1720596748377,-1360.16,0.00013698,2]
[331635556,1720596748406,-200.0,0.00013699,2]
[331635557,1720596748436,-20000.0,0.00013699,2]
[331635558,1720596748466,-2673.94,0.00013699,2]
[331635559,1720596748498,-423.87,0.00013699,2]
[331635560,1720596748528,-250.0,0.00013699,2]
[331635561,1720596748560,-2751.0,0.00013699,2]
[331635562,1720596748591,-200.0,0.00013699,2]
[331635563,1720596748623,-300.0,0.00013699,2]
[331635564,1720596748652,-300.0,0.00013699,2]
[331635565,1720596748682,-300.0,0.00013699,2]
[331635566,1720596748714,-300.0,0.00013699,2]
[331635567,1720596748746,-300.0,0.00013699,2]
[331635568,1720596748775,-200.51429049,0.00013707,2]
[331635569,1720596749702,500.0,0.00013698,2]
[331635570,1720596750163,1069.22930664,0.00013424,2]
[331635571,1720596751349,181.14,0.00012782,2]
[331635572,1720596753565,500.0,0.00013698,2]
[331635573,1720596754197,500.0,0.00013698,2]
[331635574,1720596755671,1700.38,0.00013698,2]
[331635575,1720596755704,500.0,0.00013698,2]
[331635576,1720596756064,500.0,0.00013698,2]
[331635577,1720596757886,220.57,0.00013644,2]
[331635578,1720596759498,2183.18,0.00013698,2]
[331635579,1720596759552,500.0,0.00013698,2]
[331635580,1720596760657,500.0,0.00013698,2]
[331635581,1720596761365,629.53,0.00013698,2]
[331635582,1720596761616,500.0,0.00013698,2]
[331635583,1720596761961,567.91,0.00013698,2]
[331635584,1720596762015,500.0,0.00013698,2]
[331635585,1720596762128,1692.28,0.00013698,2]
[331635586,1720596762408,500.0,0.00013698,2]
[331635587,1720596762501,500.0,0.00013698,2]
[331635588,1720596762867,631.72,0.00013698,2]
[331635589,1720596763570,106657.40033406,0.00013139,2]
[331635590,1720596763678,500.0,0.00013698,2]
[331635591,1720596764296,-2500.0,0.00013753,3]
[331635592,1720596777623,-298.83870954,0.00013139,2]
[331635593,1720596777652,-1079.36602672,0.00013478,2]
[331635594,1720596777973,-356.0,0.000136,2]
[331635595,1720596778004,-500.0,0.00013698,2]
[331635596,1720596778034,-500.0,0.00013698,2]
[331635597,1720596778072,-664.66,0.00013698,2]
[331635598,1720596778101,-500.0,0.00013698,2]
[331635599,1720596778128,-1333.89,0.00013698,2]
[331635600,1720596778156,-500.0,0.00013698,2]
[331635601,1720596778188,-749.64,0.00013698,2]
[331635602,1720596778216,-710.88,0.00013698,2]
[331635603,1720596778244,-500.0,0.00013698,2]
[331635604,1720596778271,-500.0,0.00013698,2]
[331635605,1720596778299,-1220.75,0.00013698,2]
[331635606,1720596778328,-500.0,0.00013698,2]
[331635607,1720596778356,-1539.76,0.00013698,2]
[331635608,1720596778384,-500.0,0.00013698,2]
[331635609,1720596778411,-500.0,0.00013698,2]
[331635610,1720596778439,-670.1,0.00013698,2]
[331635611,1720596778467,-500.0,0.00013698,2]
[331635612,1720596778495,-500.0,0.00013698,2]
[331635613,1720596778521,-500.0,0.00013698,2]
[331635614,1720596778549,-151.23957669,0.00013698,2]
[331635615,1720596778578,-1617.29,0.00013698,2]
[331635616,1720596778606,-500.0,0.00013698,2]
[331635617,1720596778634,-500.0,0.00013698,2]
[331635618,1720596778662,-500.0,0.00013698,2]
[331635619,1720596778689,-2251.54,0.00013698,2]
[331635620,1720596778718,-200.51429049,0.00013722,2]
[331635621,1720596778753,-150.0,0.00013725,2]
[331635622,1720596778781,-150.0,0.0001373,2]
[331635623,1720596778809,-12780.12103869,0.00013736,2]
[331635624,1720596778838,-16543.59662537,0.00013736,2]
[331635625,1720596778866,-200.51429049,0.00013737,2]
[331635626,1720596778893,-255.0,0.0001375,2]
[331635627,1720596778922,-264.47885191,0.0001375,2]
[331635628,1720596778950,-300.0,0.00013752,2]
[331635629,1720596778979,-300.0,0.00013752,2]
[331635630,1720596779007,-300.0,0.00013752,2]
[331635631,1720596779036,-300.0,0.00013752,2]
[331635632,1720596779066,-200.51429049,0.00013752,2]
[331635633,1720596779094,-150.0,0.00013752,2]
[331635634,1720596779121,-606.0,0.00013753,2]
[331635635,1720596779149,-578.85,0.00013753,2]
[331635636,1720596779176,-602.41,0.00013753,2]
[331635637,1720596779204,-1374.81,0.00013753,2]
[331635638,1720596779231,-500.0,0.00013753,2]
[331635639,1720596779259,-526.14,0.00013753,2]
[331635640,1720596779288,-500.0,0.00013753,2]
[331635641,1720596779318,-591.41,0.00013753,2]
[331635642,1720596779348,-500.0,0.00013753,2]
[331635643,1720596779376,-500.0,0.00013753,2]
[331635644,1720596779402,-557.25,0.00013753,2]
[331635645,1720596779429,-500.0,0.00013753,2]
[331635646,1720596779456,-707.9,0.00013753,2]
[331635647,1720596779483,-577.15,0.00013753,2]
[331635648,1720596779512,-965.77,0.00013753,2]
[331635649,1720596779539,-500.0,0.00013753,2]
[331635650,1720596779566,-500.0,0.00013753,2]
[331635651,1720596779596,-500.0,0.00013753,2]
[331635652,1720596779624,-896.63,0.00013753,2]
[331635653,1720596779653,-754.04,0.00013753,2]
[331635654,1720596779680,-500.0,0.00013753,2]
[331635655,1720596779708,-746.37,0.00013753,2]
[331635656,1720596779734,-500.0,0.00013753,2]
[331635657,1720596779764,-737.8,0.00013753,2]
[331635658,1720596779790,-500.0,0.00013753,2]
[331635659,1720596779818,-1195.21,0.00013753,2]
[331635660,1720596779847,-500.0,0.00013753,2]
[331635661,1720596779875,-500.0,0.00013753,2]
[331635662,1720596779902,-500.0,0.00013753,2]
[331635663,1720596779931,-1198.86,0.00013753,2]
[331635664,1720596780176,-749.39,0.00013753,2]
[331635665,1720596780206,-525.33,0.00013753,2]
[331635666,1720596780235,-500.0,0.00013753,2]
[331635667,1720596780264,-500.0,0.00013753,2]
[331635668,1720596780294,-500.0,0.00013753,2]
[331635669,1720596780323,-500.0,0.00013753,2]
[331635670,1720596780351,-805.97,0.00013753,2]
[331635671,1720596780383,-518.55,0.00013753,2]
[331635672,1720596780412,-500.0,0.00013753,2]
[331635673,1720596780444,-500.0,0.00013753,2]
[331635674,1720596780473,-601.0,0.00013753,2]
[331635675,1720596780504,-627.51,0.00013753,2]
[331635676,1720596780534,-603.33,0.00013753,2]
[331635677,1720596780563,-500.0,0.00013753,2]
[331635678,1720596780594,-616.17,0.00013753,2]
[331635679,1720596780623,-500.0,0.00013753,2]
[331635680,1720596780650,-500.0,0.00013753,2]
[331635681,1720596780676,-500.0,0.00013753,2]
[331635682,1720596780706,-562.3807544,0.00013753,2]
[331635683,1720596780736,-500.0,0.00013753,2]
[331635684,1720596780765,-505.46,0.00013753,2]
[331635685,1720596780794,-500.0,0.00013753,2]
[331635686,1720596780824,-500.0,0.00013753,2]
[331635687,1720596780853,-1198.21,0.00013753,2]
[331635688,1720596780882,-500.0,0.00013753,2]
[331635689,1720596780910,-823.1,0.00013753,2]
[331635690,1720596780938,-500.0,0.00013753,2]
[331635691,1720596780966,-500.0,0.00013753,2]
[331635692,1720596780995,-500.0,0.00013753,2]
[331635693,1720596781024,-500.0,0.00013753,2]
[331635694,1720596781053,-500.0,0.00013753,2]
[331635695,1720596781081,-500.0,0.00013753,2]
[331635696,1720596781109,-500.0,0.00013753,2]
[331635697,1720596781138,-500.0,0.00013753,2]
[331635698,1720596781167,-515.45,0.00013753,2]
[331635699,1720596781195,-500.0,0.00013753,2]
[331635700,1720596781224,-500.0,0.00013753,2]
[331635701,1720596781258,-604.33,0.00013753,2]
[331635702,1720596781286,-500.0,0.00013753,2]
[331635703,1720596781314,-500.0,0.00013753,2]
[331635704,1720596781341,-500.0,0.00013753,2]
[331635705,1720596781368,-1144.75,0.00013753,2]
[331635706,1720596781396,-1937.61,0.00013753,2]
[331635707,1720596781423,-500.0,0.00013753,2]
[331635708,1720596781451,-500.0,0.00013753,2]
[331635709,1720596781478,-500.0,0.00013753,2]
[331635710,1720596781505,-500.0,0.00013753,2]
[331635711,1720596781532,-500.0,0.00013753,2]
[331635712,1720596781560,-500.0,0.00013753,2]
[331635713,1720596781591,-1721.02,0.00013753,2]
[331635714,1720596781619,-500.0,0.00013753,2]
[331635715,1720596781647,-500.0,0.00013753,2]
[331635716,1720596781675,-500.0,0.00013753,2]
[331635717,1720596781703,-1446.02,0.00013753,2]
[331635718,1720596781732,-761.7,0.00013753,2]
[331635719,1720596781761,-500.0,0.00013753,2]